[Event "90th GER-ch 2019"]
[Site "Magdeburg"]
[Date "2019.05.30"]
[Round "6.14"]
[White "Adiyaman, Rene"]
[Black "Guenther, Andreas"]
[Result "1-0"]
[ECO "B01"]
[WhiteElo "2175"]
[BlackElo "2121"]
[Annotator "ChessBase"]
[PlyCount "115"]
[EventDate "2019.05.26"]
[EventType "tourn"]
[EventCountry "GER"]
[SourceTitle "playchess.com"]
[Source "ChessBase"]
[SourceQuality "1"]
[TimeControl "40/5400+30:1800+30"]

1. e4 d5 2. exd5 Qxd5 3. Nc3 Qa5 4. Bc4 Nf6 5. Nf3 Nc6 6. O-O Bg4 7. Re1 e6 8. h3 Bh5 9. Bb5 O-O-O 10. Bxc6 bxc6 11. Qe2 Bd6 12. a3 Rhe8 13. Rb1 Qf5 14. b4 g5 15. Ne4 Nxe4 16. Qxe4 Qxe4 17. Rxe4 Bxf3 18. gxf3 Bf4 19. d3 Bxc1 20. Rxc1 Rd5 21. Rce1 Kd7 22. f4 Rg8 23. Kh2 Rg6 24. Kg3 gxf4+ 25. Kxf4 Rh5 26. Rh1 c5 27. h4 cxb4 28. axb4 a5 29. c3 axb4 30. cxb4 Rd5 31. Ke3 e5 32. Rc4 Rgd6 33. Rd1 Rd4 34. Rd2 h5 35. f3 c6 36. Ke2 Ke6 37. Rdc2 Rxd3 38. Rxc6 Rb3 39. R6c4 Rdd3 40. Rc6+ Kf5 41. Rh6 Re3+ 42. Kd2 Rxf3 43. Rxh5+ Kf4 44. Ke2 Rh3 45. Kf1 e4 46. Rc7 Rhf3+ 47. Kg2 Rb2+ 48. Kg1 Rg3+ 49. Kh1 f6 50. b5 Kg4 51. Rhc5 Rd3 52. Rg7+ Kh3 53. Rc1 e3 54. b6 Rxb6 55. Rcg1 Rb2 56. R7g3+ Kxh4 57. Rg4+ Kh5 58. Rg8 1-0

[Event "90th GER-ch 2019"]
[Site "Magdeburg"]
[Date "2019.05.30"]
[Round "6.16"]
[White "Dauth, Benjamin"]
[Black "Bastian, Herbert"]
[Result "0-1"]
[ECO "B00"]
[WhiteElo "2295"]
[BlackElo "2297"]
[Annotator "ChessBase"]
[PlyCount "100"]
[EventDate "2019.05.26"]
[EventType "tourn"]
[EventCountry "GER"]
[SourceTitle "playchess.com"]
[Source "ChessBase"]
[SourceQuality "1"]
[TimeControl "40/5400+30:1800+30"]

1. e4 {[%emt 0:00:00]} d6 {[%emt 0:01:53]} 2. d4 {[%emt 0:00:09]} Nf6 {[%emt 0:00:16]} 3. Bd3 {[%emt 0:01:44]} e5 {[%emt 0:01:40]} 4. Ne2 {[%emt 0:02:45]} g6 {[%emt 0:04:59]} 5. O-O {[%emt 0:00:16]} Bg7 {[%emt 0:00:06]} 6. c3 {[%emt 0:01:54]} O-O {[%emt 0:00:39]} 7. h3 {[%emt 0:00:31]} Nc6 {[%emt 0:03:13]} 8. Bg5 {[%emt 0:00:20]} h6 {[%emt 0:06:28]} 9. Be3 {[%emt 0:02:26]} d5 {[%emt 0:06:18]} 10. f3 {[%emt 0:13:57]} Re8 {[%emt 0:02:18]} 11. Nd2 {[%emt 0:03:16]} b6 {[%emt 0:04:06]} 12. Bb5 {[%emt 0:07:37]} Bb7 {[%emt 0:02:56]} 13. dxe5 {[%emt 0:07:21]} Rxe5 {[%emt 0:03:50]} 14. f4 {[%emt 0:00:22]} Re7 {[%emt 0:03:05]} 15. e5 {[%emt 0:01:26]} Nh7 {[%emt 0:07:10]} 16. Qa4 {[%emt 0:04:29]} Nb8 {[%emt 0:09:39]} 17. Nf3 {[%emt 0:00:18]} c6 {[%emt 0:01:32]} 18. Bd3 {[%emt 0:00:24]} Nd7 {[%emt 0:00:16]} 19. b4 {[%emt 0:01:28]} Nhf8 {[%emt 0:01:55]} 20. Bf2 {[%emt 0:01:57]} Re8 {[%emt 0:04:17]} 21. Qc2 {[%emt 0:05:34]} c5 {[%emt 0:10:05]} 22. bxc5 {[%emt 0:05:17]} bxc5 {[%emt 0:00:07]} 23. Rab1 {[%emt 0:01:34]} Bc6 {[%emt 0:00:36]} 24. c4 {[%emt 0:01:36]} d4 {[%emt 0:00:32]} 25. Nd2 {[%emt 0:01:22]} g5 {[%emt 0:04:12]} 26. fxg5 {[%emt 0:00:07]} Nxe5 {[%emt 0:03:09]} 27. gxh6 {[%emt 0:01:34]} Bxh6 {[%emt 0:00:02]} 28. Ng3 {[%emt 0:01:16]} Nxd3 {[%emt 0:02:17]} 29. Qxd3 {[%emt 0:00:09]} Qg5 {[%emt 0:00:20]} 30. Nde4 {[%emt 0:02:37]} Rxe4 {[%emt 0:04:08]} 31. Nxe4 {[%emt 0:01:45]} Qg6 {[%emt 0:00:14]} 32. Rfe1 {[%emt 0:06:08]} Re8 {[%emt 0:02:53]} 33. Nf6+ {[%emt 0:00:08]} Qxf6 {[%emt 0:00:08]} 34. Rxe8 {[%emt 0:00:03]} Bxe8 {[%emt 0:00:07]} 35. Rb7 {[%emt 0:00:07]} Bc6 {[%emt 0:01:36]} 36. Rxa7 {[%emt 0:00:56]} Qg5 {[%emt 0:01:58]} 37. Qf1 {[%emt 0:00:55]} d3 {[%emt 0:01:48]} 38. Be1 {[%emt 0:02:50]} Qg6 {[%emt 0:01:51]} 39. Ra3 {[%emt 0:03:02]} d2 {[%emt 0:02:27]} 40. Bxd2 {[%emt 0:02:03]} Bxd2 {[%emt 0:00:10]} 41. Qf2 {[%emt 0:30:04]} Bf4 {[%emt 0:30:27]} 42. Rb3 {[%emt 0:04:27]} Ne6 {[%emt 0:00:37]} 43. Kh1 {[%emt 0:00:15]} Qe4 {[%emt 0:00:49]} 44. Rb6 {[%emt 0:06:04]} Nd4 {[%emt 0:01:39]} 45. a4 {[%emt 0:00:04]} Bxa4 {[%emt 0:00:26]} 46. Qh4 {[%emt 0:01:33]} Bc6 {[%emt 0:02:04]} 47. Rb2 {[%emt 0:00:05]} Ne6 {[%emt 0:00:47]} 48. Qg4+ {[%emt 0:00:37]} Kf8 {[%emt 0:00:21]} 49. Qh4 {[%emt 0:00:05]} Be5 {[%emt 0:00:40]} 50. Qh6+ {[%emt 0:01:04]} Ke7 {[%emt 0:00:17]} 0-1

[Event "90th GER-ch 2019"]
[Site "Magdeburg"]
[Date "2019.05.30"]
[Round "7.4"]
[White "Winterberg, Lukas"]
[Black "Lubbe, Nikolas"]
[Result "0-1"]
[ECO "A41"]
[WhiteElo "2376"]
[BlackElo "2431"]
[Annotator "ChessBase"]
[PlyCount "112"]
[EventDate "2019.05.26"]
[EventType "tourn"]
[EventCountry "GER"]
[SourceTitle "playchess.com"]
[Source "ChessBase"]
[SourceQuality "1"]
[TimeControl "40/5400+30:1800+30"]

1. d4 {[%emt 0:00:00]} d6 {[%emt 0:00:00]} 2. Nf3 {[%emt 0:00:34]} Nf6 {[%emt 0:00:00]} 3. c4 {[%emt 0:00:59]} g6 {[%emt 0:00:01]} 4. Nc3 {[%emt 0:00:41]} Bf5 {[%emt 0:00:14]} 5. Nh4 {[%emt 0:02:17]} Bd7 {[%emt 0:00:10]} 6. g3 {[%emt 0:02:28]} Bg7 {[%emt 0:04:53]} 7. Bg2 {[%emt 0:00:18]} Nc6 {[%emt 0:00:35]} 8. O-O {[%emt 0:01:50]} O-O {[%emt 0:01:29]} 9. h3 {[%emt 0:02:44]} a6 {[%emt 0:03:03]} 10. Be3 {[%emt 0:04:39]} Rb8 {[%emt 0:05:03]} 11. c5 {[%emt 0:12:19]} dxc5 {[%emt 0:14:55]} 12. dxc5 {[%emt 0:00:03]} Qc8 {[%emt 0:00:30]} 13. Kh2 {[%emt 0:00:34]} Ne5 {[%emt 0:00:58]} 14. Qc1 {[%emt 0:05:28]} Bc6 {[%emt 0:03:14]} 15. Bxc6 {[%emt 0:05:39]} bxc6 {[%emt 0:03:18]} 16. b3 {[%emt 0:04:45]} Rd8 {[%emt 0:05:58]} 17. Qc2 {[%emt 0:06:02]} Qe6 {[%emt 0:04:26]} 18. Kg2 {[%emt 0:08:02]} Nd5 {[%emt 0:02:31]} 19. Nxd5 {[%emt 0:00:25]} cxd5 {[%emt 0:01:14]} 20. Bd4 {[%emt 0:04:13]} f6 {[%emt 0:09:10]} 21. Rad1 {[%emt 0:00:56]} Nf7 {[%emt 0:01:49]} 22. Nf3 {[%emt 0:02:52]} Qc6 {[%emt 0:01:01]} 23. Bb2 {[%emt 0:02:58]} e5 {[%emt 0:00:20]} 24. Nd2 {[%emt 0:03:33]} Rb5 {[%emt 0:04:03]} 25. Rc1 {[%emt 0:00:29]} Bf8 {[%emt 0:02:00]} 26. Qd3 {[%emt 0:00:25]} f5 {[%emt 0:05:30]} 27. f3 {[%emt 0:05:05]} Bg7 {[%emt 0:04:14]} 28. a4 {[%emt 0:02:00]} Rbb8 {[%emt 0:01:22]} 29. Qc2 {[%emt 0:02:50]} d4 {[%emt 0:02:41]} 30. Qc4 {[%emt 0:00:15]} a5 {[%emt 0:01:01]} 31. Ba3 {[%emt 0:00:23]} Bh6 {[%emt 0:02:48]} 32. Rc2 {[%emt 0:01:35]} d3 {[%emt 0:03:03]} 33. exd3 {[%emt 0:00:23]} Rd4 {[%emt 0:00:18]} 34. Qc3 {[%emt 0:00:02]} Qd5 {[%emt 0:02:20]} 35. Qxa5 {[%emt 0:05:29]} Rxd3 {[%emt 0:01:10]} 36. Qxc7 {[%emt 0:01:10]} Rd8 {[%emt 0:07:55]} 37. Nc4 {[%emt 0:02:35]} Rd7 {[%emt 0:00:29]} 38. Qb8+ {[%emt 0:08:43]} Rd8 {[%emt 0:00:03]} 39. Qb4 {[%emt 0:00:07]} e4 {[%emt 0:01:32]} 40. f4 {[%emt 0:00:57]} Bf8 {[%emt 0:03:50]} 41. Re2 {[%emt 0:03:52]} h5 {[%emt 0:10:43]} 42. h4 {[%emt 0:05:36]} Be7 {[%emt 0:06:44]} 43. Re3 {[%emt 0:03:52]} Kh7 {[%emt 0:04:29]} 44. Rfe1 {[%emt 0:08:25]} Nh6 {[%emt 0:01:15]} 45. Rxd3 {[%emt 0:04:12]} exd3+ {[%emt 0:00:10]} 46. Kh3 {[%emt 0:00:16]} Ng4 {[%emt 0:01:10]} 47. Qd2 {[%emt 0:06:12]} Bxc5 {[%emt 0:00:12]} 48. Bxc5 {[%emt 0:00:12]} Qxc5 {[%emt 0:00:01]} 49. Ne5 {[%emt 0:01:31]} Nf2+ {[%emt 0:04:38]} 50. Kg2 {[%emt 0:01:01]} Ne4 {[%emt 0:00:10]} 51. b4 {[%emt 0:01:29]} Qxe5 {[%emt 0:01:49]} 52. Qxd3 {[%emt 0:01:01]} Qc7 {[%emt 0:01:02]} 53. Qe3 {[%emt 0:00:55]} Qc4 {[%emt 0:01:43]} 54. Rc1 {[%emt 0:00:21]} Qa2+ {[%emt 0:00:22]} 55. Kg1 {[%emt 0:00:08]} Rd2 {[%emt 0:01:21]} 56. Kf1 {[%emt 0:01:07]} Rh2 {[%emt 0:00:51]} 0-1

[Event "90th GER-ch 2019"]
[Site "Magdeburg"]
[Date "2019.05.30"]
[Round "7.6"]
[White "Krassowizkij, Jaroslaw"]
[Black "Becker, Marcel"]
[Result "1-0"]
[ECO "B18"]
[WhiteElo "2450"]
[BlackElo "2308"]
[Annotator "ChessBase"]
[PlyCount "87"]
[EventDate "2019.05.26"]
[EventType "tourn"]
[EventCountry "GER"]
[SourceTitle "playchess.com"]
[Source "ChessBase"]
[SourceQuality "1"]
[TimeControl "40/5400+30:1800+30"]

1. e4 {[%emt 0:00:00]} c6 {[%emt 0:00:00]} 2. d4 {[%emt 0:00:00]} d5 {[%emt 0:00:00]} 3. Nd2 {[%emt 0:00:00]} dxe4 {[%emt 0:00:12]} 4. Nxe4 {[%emt 0:00:00]} Bf5 {[%emt 0:00:17]} 5. Ng3 {[%emt 0:00:00]} Bg6 {[%emt 0:00:13]} 6. h4 {[%emt 0:00:00]} h6 {[%emt 0:00:08]} 7. Nf3 {[%emt 0:00:05]} e6 {[%emt 0:00:13]} 8. h5 {[%emt 0:00:06]} Bh7 {[%emt 0:00:09]} 9. Bd3 {[%emt 0:00:03]} Bxd3 {[%emt 0:00:14]} 10. Qxd3 {[%emt 0:00:04]} Nf6 {[%emt 0:01:05]} 11. Bd2 {[%emt 0:00:18]} c5 {[%emt 0:00:47]} 12. Ne4 {[%emt 0:00:24]} Nxe4 {[%emt 0:00:47]} 13. Qxe4 {[%emt 0:00:10]} Nc6 {[%emt 0:01:35]} 14. Bc3 {[%emt 0:00:30]} c4 {[%emt 0:02:09]} 15. Ne5 {[%emt 0:18:11]} Qd5 {[%emt 0:00:34]} 16. Qg4 {[%emt 0:00:54]} b5 {[%emt 0:06:02]} 17. Nxc6 {[%emt 0:05:58]} Qxc6 {[%emt 0:00:02]} 18. d5 {[%emt 0:00:34]} Qxd5 {[%emt 0:02:27]} 19. Rd1 {[%emt 0:00:09]} Qc6 {[%emt 0:05:31]} 20. O-O {[%emt 0:05:31]} Rg8 {[%emt 0:04:35]} 21. a4 {[%emt 0:14:36]} b4 {[%emt 0:13:15]} 22. Be5 {[%emt 0:05:36]} Be7 {[%emt 0:05:19]} 23. Rd4 {[%emt 0:04:42]} Rc8 {[%emt 0:01:23]} 24. Rfd1 {[%emt 0:15:47]} g6 {[%emt 0:02:23]} 25. Rd7 {[%emt 0:08:19]} Qxd7 {[%emt 0:03:27]} 26. Rxd7 {[%emt 0:00:06]} Kxd7 {[%emt 0:00:12]} 27. Qd4+ {[%emt 0:00:11]} Ke8 {[%emt 0:00:10]} 28. Qxa7 {[%emt 0:00:14]} f6 {[%emt 0:02:08]} 29. Bc7 {[%emt 0:02:49]} b3 {[%emt 0:06:14]} 30. cxb3 {[%emt 0:00:50]} cxb3 {[%emt 0:00:30]} 31. Qb7 {[%emt 0:03:27]} Kf7 {[%emt 0:00:23]} 32. Bd6 {[%emt 0:00:36]} Rce8 {[%emt 0:02:48]} 33. a5 {[%emt 0:06:02]} Kf8 {[%emt 0:05:06]} 34. hxg6 {[%emt 0:03:45]} Rg7 {[%emt 0:00:35]} 35. Bxe7+ {[%emt 0:01:00]} Rgxe7 {[%emt 0:00:12]} 36. Qxb3 {[%emt 0:00:08]} Kg7 {[%emt 0:01:19]} 37. Qa4 {[%emt 0:01:00]} Rb8 {[%emt 0:06:35]} 38. b4 {[%emt 0:06:07]} Reb7 {[%emt 0:00:34]} 39. a6 {[%emt 0:00:17]} Rxb4 {[%emt 0:00:07]} 40. a7 {[%emt 0:00:07]} Rb1+ {[%emt 0:04:51]} 41. Kh2 {[%emt 0:30:07]} Kxg6 {[%emt 0:30:32]} 42. Qe4+ {[%emt 0:01:31]} Kg7 {[%emt 0:00:43]} 43. axb8=R {[%emt 0:00:08]} Rxb8 {[%emt 0:00:15]} 44. Qxe6 {[%emt 0:00:06]} 1-0

[Event "90th GER-ch 2019"]
[Site "Magdeburg"]
[Date "2019.05.30"]
[Round "7.7"]
[White "Rosner, Jonas"]
[Black "Maetzkow, Maximilian Paul"]
[Result "1-0"]
[ECO "B90"]
[WhiteElo "2413"]
[BlackElo "2338"]
[Annotator "ChessBase"]
[PlyCount "37"]
[EventDate "2019.05.26"]
[EventType "tourn"]
[EventCountry "GER"]
[SourceTitle "playchess.com"]
[Source "ChessBase"]
[SourceQuality "1"]
[TimeControl "40/5400+30:1800+30"]

1. e4 {[%emt 0:00:00]} c5 {[%emt 0:00:00]} 2. Nf3 {[%emt 0:00:00]} d6 {[%emt 0:00:00]} 3. d4 {[%emt 0:01:27]} cxd4 {[%emt 0:00:00]} 4. Nxd4 {[%emt 0:00:08]} Nf6 {[%emt 0:00:00]} 5. Nc3 {[%emt 0:00:11]} a6 {[%emt 0:00:00]} 6. f3 {[%emt 0:00:18]} e5 {[%emt 0:00:00]} 7. Nb3 {[%emt 0:00:09]} Be6 {[%emt 0:00:04]} 8. Be3 {[%emt 0:00:30]} Be7 {[%emt 0:00:06]} 9. Qd2 {[%emt 0:00:20]} O-O {[%emt 0:00:15]} 10. O-O-O {[%emt 0:00:46]} a5 {[%emt 0:00:17]} 11. a4 {[%emt 0:01:56]} Nc6 {[%emt 0:01:27]} 12. g4 {[%emt 0:00:38]} Rc8 {[%emt 0:14:16]} 13. Kb1 {[%emt 0:01:54]} Nb4 {[%emt 0:03:27]} 14. g5 {[%emt 0:01:31]} Nh5 {[%emt 0:00:43]} 15. Rg1 {[%emt 0:01:37]} f5 {[%emt 0:32:14]} 16. gxf6 {[%emt 0:03:22]} Nxf6 {[%emt 0:00:56]} 17. Nc5 {[%emt 0:10:19]} Ba2+ {[%emt 0:15:51]} 18. Nxa2 {[%emt 0:03:30]} dxc5 {[%emt 0:00:02]} 19. Bc4+ 1-0

[Event "90th GER-ch 2019"]
[Site "Magdeburg"]
[Date "2019.05.30"]
[Round "7.8"]
[White "Engel, Luis"]
[Black "Pajeken, Jakob Leon"]
[Result "1-0"]
[ECO "C77"]
[WhiteElo "2512"]
[BlackElo "2359"]
[Annotator "ChessBase"]
[PlyCount "65"]
[EventDate "2019.05.26"]
[EventType "tourn"]
[EventCountry "GER"]
[SourceTitle "playchess.com"]
[Source "ChessBase"]
[SourceQuality "1"]
[TimeControl "40/5400+30:1800+30"]

1. e4 {[%emt 0:00:00]} e5 {[%emt 0:00:00]} 2. Nf3 {[%emt 0:00:00]} Nc6 {[%emt 0:00:00]} 3. Bb5 {[%emt 0:00:00]} a6 {[%emt 0:00:00]} 4. Ba4 {[%emt 0:00:00]} Nf6 {[%emt 0:00:00]} 5. d3 {[%emt 0:00:00]} d6 {[%emt 0:00:12]} 6. c3 {[%emt 0:00:08]} g6 {[%emt 0:00:08]} 7. O-O {[%emt 0:00:06]} Bg7 {[%emt 0:00:05]} 8. Re1 {[%emt 0:00:06]} O-O {[%emt 0:00:24]} 9. Nbd2 {[%emt 0:00:04]} Bd7 {[%emt 0:01:36]} 10. Nf1 {[%emt 0:00:07]} h6 {[%emt 0:01:39]} 11. Ng3 {[%emt 0:00:38]} Kh7 {[%emt 0:01:28]} 12. h3 {[%emt 0:01:50]} Qe7 {[%emt 0:02:56]} 13. d4 {[%emt 0:03:25]} b5 {[%emt 0:02:38]} 14. Bc2 {[%emt 0:01:10]} Ng8 {[%emt 0:04:12]} 15. Be3 {[%emt 0:03:35]} Rad8 {[%emt 0:06:16]} 16. dxe5 {[%emt 0:10:47]} dxe5 {[%emt 0:03:54]} 17. b4 {[%emt 0:01:13]} Be6 {[%emt 0:05:53]} 18. Qc1 {[%emt 0:02:07]} Rfe8 {[%emt 0:04:18]} 19. Nf5 {[%emt 0:04:35]} gxf5 {[%emt 0:03:50]} 20. exf5 {[%emt 0:00:07]} Kh8 {[%emt 0:00:22]} 21. Bc5 {[%emt 0:01:12]} Qf6 {[%emt 0:00:35]} 22. fxe6 {[%emt 0:00:10]} Qxe6 {[%emt 0:00:50]} 23. a4 {[%emt 0:05:40]} f5 {[%emt 0:06:34]} 24. axb5 {[%emt 0:00:45]} axb5 {[%emt 0:00:06]} 25. Ra6 {[%emt 0:00:59]} e4 {[%emt 0:04:30]} 26. Nd4 {[%emt 0:00:42]} Bxd4 {[%emt 0:03:48]} 27. Bxd4+ {[%emt 0:00:40]} Kh7 {[%emt 0:00:56]} 28. Qf4 {[%emt 0:01:45]} Qd7 {[%emt 0:05:44]} 29. Rxc6 {[%emt 0:02:42]} Qxc6 {[%emt 0:02:10]} 30. Rxe4 {[%emt 0:02:03]} Rf8 {[%emt 0:01:44]} 31. Re5 {[%emt 0:02:12]} Rxd4 {[%emt 0:02:35]} 32. Qxd4 {[%emt 0:00:29]} Qg6 {[%emt 0:00:53]} 33. g4 {[%emt 0:01:06]} 1-0

[Event "90th GER-ch 2019"]
[Site "Magdeburg"]
[Date "2019.05.30"]
[Round "7.9"]
[White "Paul, Johannes"]
[Black "Schulz, Karsten"]
[Result "1/2-1/2"]
[ECO "E70"]
[WhiteElo "2364"]
[BlackElo "2227"]
[Annotator "ChessBase"]
[PlyCount "166"]
[EventDate "2019.05.26"]
[EventType "tourn"]
[EventCountry "GER"]
[SourceTitle "playchess.com"]
[Source "ChessBase"]
[SourceQuality "1"]
[TimeControl "40/5400+30:1800+30"]

1. d4 {[%emt 0:00:00]} Nf6 {[%emt 0:00:00]} 2. c4 {[%emt 0:00:00]} g6 {[%emt 0:00:00]} 3. Nc3 {[%emt 0:00:00]} Bg7 {[%emt 0:00:00]} 4. e4 {[%emt 0:00:00]} O-O {[%emt 0:00:07]} 5. Be2 {[%emt 0:01:21]} c6 {[%emt 0:02:25]} 6. Nf3 {[%emt 0:14:56]} d5 {[%emt 0:04:03]} 7. e5 {[%emt 0:00:32]} Ne4 {[%emt 0:00:09]} 8. O-O {[%emt 0:00:13]} Nxc3 {[%emt 0:03:59]} 9. bxc3 {[%emt 0:00:18]} Nd7 {[%emt 0:00:32]} 10. cxd5 {[%emt 0:06:51]} cxd5 {[%emt 0:01:02]} 11. Bf4 {[%emt 0:08:45]} Nb6 {[%emt 0:08:21]} 12. Qd2 {[%emt 0:00:25]} Bg4 {[%emt 0:02:09]} 13. h3 {[%emt 0:02:59]} Bxf3 {[%emt 0:00:17]} 14. Bxf3 {[%emt 0:00:04]} e6 {[%emt 0:02:14]} 15. a4 {[%emt 0:14:21]} Nc4 {[%emt 0:01:42]} 16. Qa2 {[%emt 0:02:32]} Rc8 {[%emt 0:01:35]} 17. Rab1 {[%emt 0:10:23]} Qd7 {[%emt 0:04:07]} 18. Rfc1 {[%emt 0:00:35]} Rc6 {[%emt 0:01:39]} 19. Rb5 {[%emt 0:09:57]} Rfc8 {[%emt 0:08:31]} 20. Rcb1 {[%emt 0:00:29]} b6 {[%emt 0:00:40]} 21. Be2 {[%emt 0:01:05]} Bf8 {[%emt 0:01:36]} 22. Bxc4 {[%emt 0:04:27]} Rxc4 {[%emt 0:00:23]} 23. Bd2 {[%emt 0:00:16]} Be7 {[%emt 0:01:38]} 24. a5 {[%emt 0:01:22]} bxa5 {[%emt 0:02:31]} 25. Rxa5 {[%emt 0:00:33]} R4c7 {[%emt 0:01:11]} 26. Rab5 {[%emt 0:03:41]} Bd8 {[%emt 0:03:49]} 27. R1b3 {[%emt 0:04:21]} Kg7 {[%emt 0:11:00]} 28. Qa1 {[%emt 0:01:06]} Qe7 {[%emt 0:08:32]} 29. Bc1 {[%emt 0:00:53]} Qh4 {[%emt 0:01:32]} 30. Rb7 {[%emt 0:07:37]} Rxb7 {[%emt 0:04:13]} 31. Rxb7 {[%emt 0:00:07]} Bb6 {[%emt 0:00:38]} 32. Bd2 {[%emt 0:03:18]} Qd8 {[%emt 0:02:15]} 33. Qc1 {[%emt 0:01:37]} Rc7 {[%emt 0:11:47]} 34. Bg5 {[%emt 0:00:54]} Rxb7 {[%emt 0:00:34]} 35. Bxd8 {[%emt 0:00:29]} Bxd8 {[%emt 0:00:07]} 36. g4 {[%emt 0:00:55]} g5 {[%emt 0:02:07]} 37. Kg2 {[%emt 0:00:15]} h6 {[%emt 0:00:07]} 38. Qa3 {[%emt 0:00:15]} Be7 {[%emt 0:00:39]} 39. Qa6 {[%emt 0:00:27]} Rc7 {[%emt 0:00:20]} 40. Qa5 {[%emt 0:00:24]} Rb7 {[%emt 0:00:39]} 41. Kf3 {[%emt 0:05:30]} Bf8 {[%emt 0:05:27]} 42. Qa2 {[%emt 0:01:37]} Be7 {[%emt 0:02:28]} 43. Ke3 {[%emt 0:00:29]} Bf8 {[%emt 0:00:24]} 44. Kd3 {[%emt 0:00:13]} Be7 {[%emt 0:00:10]} 45. Kc2 {[%emt 0:00:33]} Bf8 {[%emt 0:00:07]} 46. Qa6 {[%emt 0:00:14]} Rc7 {[%emt 0:00:15]} 47. Kd3 {[%emt 0:00:16]} Kg8 {[%emt 0:00:33]} 48. Qb5 {[%emt 0:00:39]} Kg7 {[%emt 0:02:14]} 49. Qb8 {[%emt 0:00:17]} Rd7 {[%emt 0:00:55]} 50. Qc8 {[%emt 0:00:22]} Re7 {[%emt 0:00:03]} 51. Kc2 {[%emt 0:01:39]} Kg8 {[%emt 0:01:37]} 52. Kb3 {[%emt 0:00:21]} Kg7 {[%emt 0:00:19]} 53. Ka4 {[%emt 0:00:07]} Kg8 {[%emt 0:00:26]} 54. Kb5 {[%emt 0:00:12]} Kg7 {[%emt 0:00:12]} 55. Kc6 {[%emt 0:00:07]} Kg8 {[%emt 0:00:15]} 56. Qa6 {[%emt 0:00:32]} Kg7 {[%emt 0:00:10]} 57. Qf1 {[%emt 0:00:22]} Re8 {[%emt 0:00:44]} 58. Kb7 {[%emt 0:03:00]} Re7+ {[%emt 0:03:16]} 59. Kb8 {[%emt 0:00:11]} Kg8 {[%emt 0:00:27]} 60. Qb5 {[%emt 0:01:07]} Kg7 {[%emt 0:02:16]} 61. Kc8 {[%emt 0:00:08]} Kg8 {[%emt 0:00:15]} 62. Kd8 {[%emt 0:00:14]} Kg7 {[%emt 0:00:22]} 63. h4 {[%emt 0:09:57]} Kg6 {[%emt 0:04:07]} 64. Qd3+ {[%emt 0:01:28]} Kg7 {[%emt 0:00:03]} 65. hxg5 {[%emt 0:00:10]} hxg5 {[%emt 0:00:07]} 66. Qe3 {[%emt 0:00:14]} f6 {[%emt 0:02:20]} 67. exf6+ {[%emt 0:02:18]} Kxf6 {[%emt 0:00:01]} 68. Qe5+ {[%emt 0:00:13]} Kg6 {[%emt 0:00:21]} 69. Qh8 {[%emt 0:01:10]} Kf7 {[%emt 0:03:33]} 70. Qh7+ {[%emt 0:02:25]} Kf6 {[%emt 0:00:40]} 71. Qg8 {[%emt 0:02:19]} Bh6 {[%emt 0:02:12]} 72. f4 {[%emt 0:01:57]} Rf7 {[%emt 0:03:19]} 73. fxg5+ {[%emt 0:03:38]} Bxg5 {[%emt 0:00:20]} 74. Qh8+ {[%emt 0:00:37]} Kg6+ {[%emt 0:01:24]} 75. Ke8 {[%emt 0:00:01]} Re7+ {[%emt 0:03:14]} 76. Kf8 {[%emt 0:00:12]} Rf7+ {[%emt 0:01:09]} 77. Kg8 {[%emt 0:00:36]} Bh6 {[%emt 0:07:01]} 78. Qxh6+ {[%emt 0:00:10]} Kxh6 {[%emt 0:00:01]} 79. Kxf7 {[%emt 0:00:08]} a5 {[%emt 0:00:30]} 80. Kf6 {[%emt 0:00:06]} Kh7 {[%emt 0:00:10]} 81. Kf7 {[%emt 0:00:03]} Kh6 {[%emt 0:00:06]} 82. Kf6 {[%emt 0:00:08]} Kh7 {[%emt 0:00:08]} 83. Kf7 Kh6 1/2-1/2

[Event "90th GER-ch 2019"]
[Site "Magdeburg"]
[Date "2019.05.30"]
[Round "7.10"]
[White "Krastev, Alexander"]
[Black "Schulz, Lukas"]
[Result "1-0"]
[ECO "B30"]
[WhiteElo "2344"]
[BlackElo "2302"]
[Annotator "ChessBase"]
[PlyCount "75"]
[EventDate "2019.05.26"]
[EventType "tourn"]
[EventCountry "GER"]
[SourceTitle "playchess.com"]
[Source "ChessBase"]
[SourceQuality "1"]
[TimeControl "40/5400+30:1800+30"]

1. e4 {[%emt 0:00:00]} c5 {[%emt 0:00:00]} 2. Nf3 {[%emt 0:00:00]} Nc6 {[%emt 0:00:00]} 3. Bb5 {[%emt 0:00:00]} d6 {[%emt 0:00:17]} 4. O-O {[%emt 0:00:05]} Bd7 {[%emt 0:00:16]} 5. Re1 {[%emt 0:00:28]} Nf6 {[%emt 0:00:16]} 6. c3 {[%emt 0:00:06]} a6 {[%emt 0:00:50]} 7. Bf1 {[%emt 0:00:10]} Bg4 {[%emt 0:04:01]} 8. d3 {[%emt 0:02:10]} e5 {[%emt 0:04:01]} 9. h3 {[%emt 0:00:29]} Bh5 {[%emt 0:00:18]} 10. Nbd2 {[%emt 0:01:30]} Be7 {[%emt 0:02:27]} 11. a4 {[%emt 0:00:56]} O-O {[%emt 0:13:36]} 12. g4 {[%emt 0:06:06]} Bg6 {[%emt 0:00:10]} 13. Bg2 {[%emt 0:00:13]} d5 {[%emt 0:12:24]} 14. g5 {[%emt 0:10:27]} Nxe4 {[%emt 0:04:58]} 15. dxe4 {[%emt 0:00:19]} dxe4 {[%emt 0:00:04]} 16. Nh4 {[%emt 0:00:26]} e3 {[%emt 0:00:05]} 17. fxe3 {[%emt 0:06:09]} Bd3 {[%emt 0:00:13]} 18. Ne4 {[%emt 0:02:08]} h6 {[%emt 0:11:40]} 19. Nf2 {[%emt 0:16:10]} hxg5 {[%emt 0:06:24]} 20. Qxd3 {[%emt 0:03:53]} gxh4 {[%emt 0:00:04]} 21. Bxc6 {[%emt 0:01:08]} bxc6 {[%emt 0:00:13]} 22. Qxd8 {[%emt 0:00:44]} Rfxd8 {[%emt 0:00:05]} 23. e4 {[%emt 0:00:12]} Rab8 {[%emt 0:00:42]} 24. Re2 {[%emt 0:00:49]} g6 {[%emt 0:02:25]} 25. Be3 {[%emt 0:01:25]} f5 {[%emt 0:02:36]} 26. Rd1 {[%emt 0:01:17]} Rxd1+ {[%emt 0:02:45]} 27. Nxd1 {[%emt 0:00:08]} Kf7 {[%emt 0:00:13]} 28. Bc1 {[%emt 0:03:55]} Ke6 {[%emt 0:02:44]} 29. Kg2 {[%emt 0:00:32]} Rd8 {[%emt 0:01:30]} 30. Nf2 {[%emt 0:00:51]} c4 {[%emt 0:00:41]} 31. Re1 {[%emt 0:03:25]} Rf8 {[%emt 0:01:38]} 32. Nd1 {[%emt 0:06:04]} f4 {[%emt 0:03:09]} 33. Kf3 {[%emt 0:03:41]} Bc5 {[%emt 0:06:01]} 34. Re2 {[%emt 0:00:13]} Kd7 {[%emt 0:07:08]} 35. Bd2 {[%emt 0:01:02]} Kc7 {[%emt 0:02:26]} 36. Be1 {[%emt 0:01:08]} Be7 {[%emt 0:00:43]} 37. Rd2 {[%emt 0:03:19]} Re8 {[%emt 0:01:36]} 38. Nf2 {[%emt 0:01:29]} 1-0